[Event "*** Titled Tuesday Blitz"]
[Site "Chess.com"]
[Date "2018.01.02"]
[Round "4"]
[White "1stSecond"]
[Black "SergeiAza"]
[Result "1/2-1/2"]
[WhiteElo "2485"]
[BlackElo "2667"]
[TimeControl "180+2"]
[EndTime "13:56:10 PST"]
[Termination "Game drawn by stalemate"]

1. Nf3 {[%clk 0:03:01.9]} 1... Nf6 {[%clk 0:03:00.3]} 2. d4 {[%clk 0:03:02.7]}
2... e6 {[%clk 0:03:00.7]} 3. c4 {[%clk 0:03:03.9]} 3... d5 {[%clk 0:03:01]} 4.
g3 {[%clk 0:03:04.6]} 4... dxc4 {[%clk 0:02:58.1]} 5. Bg2 {[%clk 0:03:05.4]}
5... a6 {[%clk 0:02:59.7]} 6. Ne5 {[%clk 0:03:05.5]} 6... Bb4+ {[%clk
0:02:57.8]} 7. Bd2 {[%clk 0:02:56.3]} 7... Qxd4 {[%clk 0:02:57.2]} 8. Bxb4
{[%clk 0:02:57.4]} 8... Qxe5 {[%clk 0:02:57.4]} 9. O-O {[%clk 0:02:56.6]} 9...
Nc6 {[%clk 0:02:29.7]} 10. Bxc6+ {[%clk 0:02:38.5]} 10... bxc6 {[%clk
0:02:30.4]} 11. Na3 {[%clk 0:02:40.4]} 11... c5 {[%clk 0:02:29.6]} 12. Bc3
{[%clk 0:02:36.9]} 12... Qd5 {[%clk 0:02:29.8]} 13. Qa4+ {[%clk 0:02:38.2]}
13... Bd7 {[%clk 0:02:29.7]} 14. Qxc4 {[%clk 0:02:39.6]} 14... Bb5 {[%clk
0:02:17.6]} 15. Qxd5 {[%clk 0:02:27.3]} 15... exd5 {[%clk 0:02:17.4]} 16. Bxf6
{[%clk 0:02:14.6]} 16... gxf6 {[%clk 0:02:18.1]} 17. Rfc1 {[%clk 0:02:14.5]}
17... c4 {[%clk 0:02:17.4]} 18. b3 {[%clk 0:02:07.4]} 18... cxb3 {[%clk
0:01:57.4]} 19. Rxc7 {[%clk 0:01:35.7]} 19... O-O {[%clk 0:01:51.8]} 20. axb3
{[%clk 0:01:35]} 20... Bxe2 {[%clk 0:01:51.8]} 21. Nc2 {[%clk 0:01:30.2]} 21...
Rfc8 {[%clk 0:01:44.8]} 22. Rxc8+ {[%clk 0:01:27.1]} 22... Rxc8 {[%clk
0:01:46.3]} 23. Nd4 {[%clk 0:01:28.7]} 23... Bd3 {[%clk 0:01:42.9]} 24. Ra5
{[%clk 0:01:21.2]} 24... Bb5 {[%clk 0:01:38.3]} 25. Nxb5 {[%clk 0:01:20.6]}
25... Rc5 {[%clk 0:01:28.1]} 26. Rxa6 {[%clk 0:01:21.7]} 26... Rxb5 {[%clk
0:01:29.2]} 27. Rxf6 {[%clk 0:01:23.3]} 27... Rxb3 {[%clk 0:01:29.2]} 28. Rd6
{[%clk 0:01:22.4]} 28... Rb5 {[%clk 0:01:28.1]} 29. g4 {[%clk 0:01:21.2]} 29...
Kg7 {[%clk 0:01:27.5]} 30. Kg2 {[%clk 0:01:19]} 30... h6 {[%clk 0:01:27.3]} 31.
Kg3 {[%clk 0:01:19.7]} 31... Rb3+ {[%clk 0:01:27.6]} 32. f3 {[%clk 0:01:20.7]}
32... Rd3 {[%clk 0:01:28.6]} 33. h4 {[%clk 0:01:21.4]} 33... Rd1 {[%clk
0:01:29.5]} 34. h5 {[%clk 0:01:22.6]} 34... d4 {[%clk 0:01:26]} 35. Kf4 {[%clk
0:01:23.9]} 35... Rd3 {[%clk 0:01:19.7]} 36. Rd5 {[%clk 0:01:17.9]} 36... Kf8
{[%clk 0:01:15.2]} 37. Rd8+ {[%clk 0:01:16.7]} 37... Kg7 {[%clk 0:01:16.1]} 38.
Rd6 {[%clk 0:01:17.7]} 38... Kh7 {[%clk 0:01:15]} 39. Rf6 {[%clk 0:01:05]} 39...
Kg7 {[%clk 0:01:14]} 40. Rf5 {[%clk 0:01:06.9]} 40... Re3 {[%clk 0:01:12.1]} 41.
Rd5 {[%clk 0:01:02.6]} 41... Rd3 {[%clk 0:01:12.8]} 42. Kg3 {[%clk 0:01:04.2]}
42... Rd2 {[%clk 0:01:12.9]} 43. Rd6 {[%clk 0:01:04.9]} 43... Rd3 {[%clk
0:01:12.7]} 44. Kf2 {[%clk 0:01:04.9]} 44... Kh7 {[%clk 0:01:11]} 45. Ke2 {[%clk
0:01:04.8]} 45... Re3+ {[%clk 0:01:11.7]} 46. Kf2 {[%clk 0:01:06.4]} 46... Rd3
{[%clk 0:01:13]} 47. f4 {[%clk 0:01:06.2]} 47... Kg7 {[%clk 0:01:10.2]} 48. f5
{[%clk 0:01:06.9]} 48... Kh7 {[%clk 0:01:02.9]} 49. f6 {[%clk 0:01:03.5]} 49...
Rd2+ {[%clk 0:00:56.4]} 50. Kg3 {[%clk 0:01:00.1]} 50... Rd1 {[%clk 0:00:43.9]}
51. Rd7 {[%clk 0:01:00.6]} 51... Kg8 {[%clk 0:00:29.8]} 52. Rd8+ {[%clk
0:01:01]} 52... Kh7 {[%clk 0:00:31.1]} 53. Rf8 {[%clk 0:01:02.9]} 53... Rg1+
{[%clk 0:00:30.2]} 54. Kh3 {[%clk 0:01:04.2]} 54... d3 {[%clk 0:00:30.2]} 55.
Rxf7+ {[%clk 0:01:05]} 55... Kg8 {[%clk 0:00:31.3]} 56. Rg7+ {[%clk 0:00:40.6]}
56... Kf8 {[%clk 0:00:28.9]} 57. Rd7 {[%clk 0:00:42.1]} 57... Rf1 {[%clk
0:00:28.7]} 58. Rxd3 {[%clk 0:00:19.8]} 58... Rxf6 {[%clk 0:00:29.6]} 59. Kg3
{[%clk 0:00:18.5]} 59... Ra6 {[%clk 0:00:29.4]} 60. Rd7 {[%clk 0:00:13.5]} 60...
Kg8 {[%clk 0:00:29.8]} 61. Kf4 {[%clk 0:00:14]} 61... Ra5 {[%clk 0:00:30.5]} 62.
Re7 {[%clk 0:00:14.9]} 62... Rb5 {[%clk 0:00:31.2]} 63. Re5 {[%clk 0:00:15]}
63... Rb6 {[%clk 0:00:31.1]} 64. Kf5 {[%clk 0:00:15.9]} 64... Rb4 {[%clk
0:00:28.3]} 65. Re6 {[%clk 0:00:14.9]} 65... Kg7 {[%clk 0:00:26]} 66. Re7+
{[%clk 0:00:15]} 66... Kg8 {[%clk 0:00:26.5]} 67. Ra7 {[%clk 0:00:15]} 67... Rc4
{[%clk 0:00:26.3]} 68. Re7 {[%clk 0:00:15.2]} 68... Rb4 {[%clk 0:00:26.3]} 69.
Re4 {[%clk 0:00:15.5]} 69... Rb5+ {[%clk 0:00:24.4]} 70. Kf6 {[%clk 0:00:14]}
70... Rg5 {[%clk 0:00:21.5]} 71. Rd4 {[%clk 0:00:11.3]} 71... Kh7 {[%clk
0:00:22.2]} 72. Kf7 {[%clk 0:00:10.4]} 72... Rg7+ {[%clk 0:00:21.8]} 73. Kf6
{[%clk 0:00:11.3]} 73... Rg5 {[%clk 0:00:23.4]} 74. Re4 {[%clk 0:00:12.5]} 74...
Kh8 {[%clk 0:00:23.6]} 75. Re8+ {[%clk 0:00:12.1]} 75... Kh7 {[%clk 0:00:24.7]}
76. Re7+ {[%clk 0:00:14]} 76... Kh8 {[%clk 0:00:25.7]} 77. Re4 {[%clk
0:00:15.6]} 77... Kh7 {[%clk 0:00:26.1]} 78. Rf4 {[%clk 0:00:16.9]} 78... Kh8
{[%clk 0:00:26.6]} 79. Ke6 {[%clk 0:00:15.7]} 79... Kh7 {[%clk 0:00:26.4]} 80.
Ke7 {[%clk 0:00:16.6]} 80... Kh8 {[%clk 0:00:26.9]} 81. Kf8 {[%clk 0:00:17]}
81... Kh7 {[%clk 0:00:27.5]} 82. Kf7 {[%clk 0:00:13.9]} 82... Kh8 {[%clk
0:00:27.7]} 83. Rf6 {[%clk 0:00:13.4]} 83... Rg7+ {[%clk 0:00:26]} 84. Kf8
{[%clk 0:00:13.8]} 84... Kh7 {[%clk 0:00:21.9]} 85. Rf7 {[%clk 0:00:12.9]} 85...
Kh8 {[%clk 0:00:22.7]} 86. Rxg7 {[%clk 0:00:05.1]} 1/2-1/2

[Event "*** Titled Tuesday Blitz"]
[Site "Chess.com"]
[Date "2018.01.02"]
[Round "4"]
[White "Robin-Side"]
[Black "plouarzel"]
[Result "1/2-1/2"]
[WhiteElo "2562"]
[BlackElo "2350"]
[TimeControl "180+2"]
[EndTime "13:57:45 PST"]
[Termination "Game drawn - insufficient material"]

1. d4 {[%clk 0:02:57.2]} 1... Nf6 {[%clk 0:02:59.8]} 2. Bg5 {[%clk 0:02:54.9]}
2... g6 {[%clk 0:02:58.2]} 3. Bxf6 {[%clk 0:02:54.4]} 3... exf6 {[%clk 0:02:59]}
4. h4 {[%clk 0:02:56]} 4... h5 {[%clk 0:02:56.5]} 5. e4 {[%clk 0:02:50.8]} 5...
d5 {[%clk 0:02:52.2]} 6. exd5 {[%clk 0:02:50.4]} 6... Qxd5 {[%clk 0:02:51.6]} 7.
Nc3 {[%clk 0:02:50.3]} 7... Bb4 {[%clk 0:02:52.2]} 8. Ne2 {[%clk 0:02:36.5]}
8... Nc6 {[%clk 0:02:41.5]} 9. Qd2 {[%clk 0:02:33.3]} 9... Bg4 {[%clk
0:02:16.8]} 10. Nxd5 {[%clk 0:02:29.7]} 10... Bxd2+ {[%clk 0:01:58]} 11. Kxd2
{[%clk 0:02:31.6]} 11... O-O-O {[%clk 0:01:57.9]} 12. Nxf6 {[%clk 0:02:21.3]}
12... Nxd4 {[%clk 0:01:42.1]} 13. Nxd4 {[%clk 0:02:08.6]} 13... Rxd4+ {[%clk
0:01:42.6]} 14. Kc3 {[%clk 0:01:57.3]} 14... c5 {[%clk 0:01:33.4]} 15. Nxg4
{[%clk 0:01:57.8]} 15... hxg4 {[%clk 0:01:33.1]} 16. Bc4 {[%clk 0:01:52.8]}
16... Rf4 {[%clk 0:01:16.6]} 17. Raf1 {[%clk 0:01:40.6]} 17... Kc7 {[%clk
0:00:50.1]} 18. f3 {[%clk 0:01:30]} 18... g3 {[%clk 0:00:44.8]} 19. h5 {[%clk
0:01:25.9]} 19... gxh5 {[%clk 0:00:35.4]} 20. Re1 {[%clk 0:01:25.5]} 20... h4
{[%clk 0:00:20]} 21. Re7+ {[%clk 0:01:23.3]} 21... Kd6 {[%clk 0:00:17.9]} 22.
Rxf7 {[%clk 0:01:25.2]} 22... Rxf7 {[%clk 0:00:17.1]} 23. Bxf7 {[%clk
0:01:27.1]} 23... h3 {[%clk 0:00:12.8]} 24. gxh3 {[%clk 0:01:26.7]} 24... g2
{[%clk 0:00:13.9]} 25. Rg1 {[%clk 0:01:27.5]} 25... Rxh3 {[%clk 0:00:14.6]} 26.
Rxg2 {[%clk 0:01:23.3]} 26... Rxf3+ {[%clk 0:00:15.2]} 27. Kc4 {[%clk
0:01:22.2]} 27... Rxf7 {[%clk 0:00:17.1]} 28. Rg6+ {[%clk 0:01:22.3]} 28... Kc7
{[%clk 0:00:16.8]} 29. Kxc5 {[%clk 0:01:01.5]} 29... Rf5+ {[%clk 0:00:14.5]} 30.
Kb4 {[%clk 0:01:00.4]} 30... Rf4+ {[%clk 0:00:14.4]} 31. c4 {[%clk 0:01:01.2]}
31... Rf5 {[%clk 0:00:13.8]} 32. Rg7+ {[%clk 0:01:01.8]} 32... Kc6 {[%clk
0:00:14.3]} 33. Rg6+ {[%clk 0:01:02.6]} 33... Kc7 {[%clk 0:00:14.9]} 34. b3
{[%clk 0:01:03.8]} 34... Rh5 {[%clk 0:00:13.7]} 35. c5 {[%clk 0:00:57.6]} 35...
Rh2 {[%clk 0:00:11.2]} 36. a3 {[%clk 0:00:51.7]} 36... Rh5 {[%clk 0:00:09.6]}
37. Kb5 {[%clk 0:00:50.1]} 37... Rf5 {[%clk 0:00:06.1]} 38. Rg7+ {[%clk
0:00:51]} 38... Kc8 {[%clk 0:00:06.6]} 39. b4 {[%clk 0:00:49.1]} 39... Rh5
{[%clk 0:00:07.2]} 40. a4 {[%clk 0:00:43.1]} 40... Kb8 {[%clk 0:00:07.8]} 41.
Rf7 {[%clk 0:00:25.4]} 41... Rh6 {[%clk 0:00:07.2]} 42. Rf8+ {[%clk 0:00:21.6]}
42... Kc7 {[%clk 0:00:07.7]} 43. Rf7+ {[%clk 0:00:19.1]} 43... Kb8 {[%clk
0:00:08.7]} 44. Ka5 {[%clk 0:00:21]} 44... Rg6 {[%clk 0:00:09]} 45. Rd7 {[%clk
0:00:17.6]} 45... Rh6 {[%clk 0:00:09.7]} 46. Rd6 {[%clk 0:00:18.7]} 46... Rh7
{[%clk 0:00:08]} 47. Kb5 {[%clk 0:00:19.1]} 47... Rh5 {[%clk 0:00:08.6]} 48. Rd7
{[%clk 0:00:17.6]} 48... Kc8 {[%clk 0:00:09.2]} 49. Rf7 {[%clk 0:00:18.2]} 49...
Rh6 {[%clk 0:00:10.2]} 50. a5 {[%clk 0:00:19.1]} 50... Rg6 {[%clk 0:00:10.8]}
51. Re7 {[%clk 0:00:17]} 51... Rh6 {[%clk 0:00:11.5]} 52. Re3 {[%clk 0:00:16.2]}
52... Rg6 {[%clk 0:00:11.8]} 53. Rd3 {[%clk 0:00:17.3]} 53... a6+ {[%clk
0:00:13]} 54. Kc4 {[%clk 0:00:16.1]} 54... Kc7 {[%clk 0:00:13.5]} 55. Rd4 {[%clk
0:00:16]} 55... Rg1 {[%clk 0:00:14.3]} 56. Re4 {[%clk 0:00:15.4]} 56... Rc1+
{[%clk 0:00:15.1]} 57. Kd5 {[%clk 0:00:16.7]} 57... Rd1+ {[%clk 0:00:16.1]} 58.
Ke5 {[%clk 0:00:18]} 58... Rd2 {[%clk 0:00:16.9]} 59. Rd4 {[%clk 0:00:18.4]}
59... Re2+ {[%clk 0:00:17.2]} 60. Kd5 {[%clk 0:00:19.8]} 60... Rh2 {[%clk
0:00:17.7]} 61. Rg4 {[%clk 0:00:18.7]} 61... Rh7 {[%clk 0:00:17.7]} 62. Rg5
{[%clk 0:00:18.1]} 62... Rd7+ {[%clk 0:00:18.6]} 63. Kc4 {[%clk 0:00:18.3]}
63... Rf7 {[%clk 0:00:19]} 64. Rg4 {[%clk 0:00:19.2]} 64... Re7 {[%clk
0:00:19.5]} 65. b5 {[%clk 0:00:18.8]} 65... axb5+ {[%clk 0:00:19.3]} 66. Kxb5
{[%clk 0:00:20.6]} 66... Re1 {[%clk 0:00:19]} 67. Rg7+ {[%clk 0:00:21]} 67...
Kb8 {[%clk 0:00:19.6]} 68. Rg8+ {[%clk 0:00:12.4]} 68... Kc7 {[%clk 0:00:20]}
69. Rg7+ {[%clk 0:00:13.6]} 69... Kb8 {[%clk 0:00:20.9]} 70. a6 {[%clk
0:00:13.2]} 70... Rb1+ {[%clk 0:00:19.9]} 71. Kc4 {[%clk 0:00:12.3]} 71... bxa6
{[%clk 0:00:18]} 72. Kd5 {[%clk 0:00:13.5]} 72... Rh1 {[%clk 0:00:10.2]} 73.
Rg8+ {[%clk 0:00:08.9]} 73... Kc7 {[%clk 0:00:11.2]} 74. Rg7+ {[%clk 0:00:10.5]}
74... Kc8 {[%clk 0:00:12.3]} 75. Rg6 {[%clk 0:00:11.8]} 75... Kc7 {[%clk
0:00:11.8]} 76. Rxa6 {[%clk 0:00:11.8]} 76... Rh2 {[%clk 0:00:12.4]} 77. Ra7+
{[%clk 0:00:12.1]} 77... Kc8 {[%clk 0:00:11]} 78. Re7 {[%clk 0:00:13.1]} 78...
Rh6 {[%clk 0:00:11.4]} 79. Rg7 {[%clk 0:00:12.8]} 79... Kd8 {[%clk 0:00:10.6]}
80. Kc4 {[%clk 0:00:12.5]} 80... Kc8 {[%clk 0:00:10.9]} 81. Kb5 {[%clk
0:00:13.9]} 81... Kb8 {[%clk 0:00:11.7]} 82. Rg8+ {[%clk 0:00:14.7]} 82... Kc7
{[%clk 0:00:12]} 83. Rg7+ {[%clk 0:00:14.1]} 83... Kc8 {[%clk 0:00:13.2]} 84.
Rg8+ {[%clk 0:00:15]} 84... Kc7 {[%clk 0:00:14.3]} 85. Rf8 {[%clk 0:00:16.2]}
85... Rg6 {[%clk 0:00:14.8]} 86. Rf7+ {[%clk 0:00:17.1]} 86... Kc8 {[%clk
0:00:15.4]} 87. Rf2 {[%clk 0:00:14.8]} 87... Kc7 {[%clk 0:00:15.9]} 88. Rd2
{[%clk 0:00:15.9]} 88... Rh6 {[%clk 0:00:15.4]} 89. Kc4 {[%clk 0:00:16.7]} 89...
Kc6 {[%clk 0:00:14.8]} 90. Rd4 {[%clk 0:00:14.7]} 90... Rh5 {[%clk 0:00:13.5]}
91. Rd6+ {[%clk 0:00:15.6]} 91... Kc7 {[%clk 0:00:14.8]} 92. Kb5 {[%clk
0:00:16.8]} 92... Rh1 {[%clk 0:00:14]} 93. Rc6+ {[%clk 0:00:17.9]} 93... Kb7
{[%clk 0:00:15.2]} 94. Rb6+ {[%clk 0:00:18.1]} 94... Kc7 {[%clk 0:00:16.3]} 95.
Rc6+ {[%clk 0:00:19.6]} 95... Kb7 {[%clk 0:00:17.3]} 96. Rg6 {[%clk 0:00:21.4]}
96... Rb1+ {[%clk 0:00:16.7]} 97. Kc4 {[%clk 0:00:22.8]} 97... Rc1+ {[%clk
0:00:17.8]} 98. Kd5 {[%clk 0:00:24]} 98... Rd1+ {[%clk 0:00:18.7]} 99. Kc4
{[%clk 0:00:24.4]} 99... Rc1+ {[%clk 0:00:19.7]} 100. Kd4 {[%clk 0:00:25.9]}
100... Rd1+ {[%clk 0:00:20.7]} 101. Ke4 {[%clk 0:00:26.9]} 101... Rc1 {[%clk
0:00:20.2]} 102. Rb6+ {[%clk 0:00:24.6]} 102... Kc7 {[%clk 0:00:20.5]} 103. Kd5
{[%clk 0:00:25.9]} 103... Rd1+ {[%clk 0:00:20.6]} 104. Kc4 {[%clk 0:00:27.1]}
104... Rc1+ {[%clk 0:00:21.6]} 105. Kb5 {[%clk 0:00:29]} 105... Rb1+ {[%clk
0:00:22.2]} 106. Ka6 {[%clk 0:00:29.8]} 106... Ra1+ {[%clk 0:00:19.3]} 107. Kb5
{[%clk 0:00:31.1]} 107... Rb1+ {[%clk 0:00:20.5]} 108. Kc4 {[%clk 0:00:32.7]}
108... Rc1+ {[%clk 0:00:21.6]} 109. Kd5 {[%clk 0:00:32.7]} 109... Rd1+ {[%clk
0:00:22.5]} 110. Ke4 {[%clk 0:00:34.1]} 110... Re1+ {[%clk 0:00:22.9]} 111. Kd3
{[%clk 0:00:35.5]} 111... Rc1 {[%clk 0:00:23.9]} 112. Rb5 {[%clk 0:00:35.3]}
112... Kc6 {[%clk 0:00:24]} 113. Ra5 {[%clk 0:00:36.3]} 113... Rxc5 {[%clk
0:00:24.9]} 114. Rxc5+ {[%clk 0:00:37.3]} 114... Kxc5 {[%clk 0:00:26.8]} 1/2-1/2

[Event "*** Titled Tuesday Blitz"]
[Site "Chess.com"]
[Date "2018.01.02"]
[Round "4"]
[White "GMKrikor"]
[Black "grzechu96"]
[Result "1/2-1/2"]
[WhiteElo "2659"]
[BlackElo "2458"]
[TimeControl "180+2"]
[EndTime "13:58:44 PST"]
[Termination "Game drawn by 50-move rule"]

1. e4 {[%clk 0:03:01.9]} 1... c5 {[%clk 0:02:59.7]} 2. Nf3 {[%clk 0:03:03.1]}
2... d6 {[%clk 0:03:00.7]} 3. d4 {[%clk 0:03:04.8]} 3... cxd4 {[%clk 0:03:02.6]}
4. Nxd4 {[%clk 0:03:06.7]} 4... Nf6 {[%clk 0:03:03.7]} 5. Nc3 {[%clk 0:03:08.4]}
5... a6 {[%clk 0:03:05.3]} 6. g3 {[%clk 0:03:03.5]} 6... e5 {[%clk 0:03:05.2]}
7. Nb3 {[%clk 0:03:03.2]} 7... Nbd7 {[%clk 0:03:06]} 8. a4 {[%clk 0:03:02.3]}
8... b6 {[%clk 0:03:06.6]} 9. Bg2 {[%clk 0:03:03.6]} 9... Bb7 {[%clk 0:03:07.9]}
10. O-O {[%clk 0:03:04.6]} 10... Be7 {[%clk 0:03:08.5]} 11. Nd5 {[%clk 0:02:47]}
11... Nxd5 {[%clk 0:03:07.7]} 12. exd5 {[%clk 0:02:48.3]} 12... O-O {[%clk
0:03:08.9]} 13. Be3 {[%clk 0:02:33.6]} 13... Rc8 {[%clk 0:03:06]} 14. Qd3 {[%clk
0:02:30.2]} 14... f5 {[%clk 0:03:05.4]} 15. f4 {[%clk 0:02:16.8]} 15... e4
{[%clk 0:03:05.4]} 16. Qd2 {[%clk 0:02:18.1]} 16... Nf6 {[%clk 0:03:02.6]} 17.
Nd4 {[%clk 0:02:14.9]} 17... Qd7 {[%clk 0:02:48.5]} 18. Ne6 {[%clk 0:01:13.5]}
18... Rfe8 {[%clk 0:02:48.3]} 19. Bd4 {[%clk 0:01:14.7]} 19... Bxd5 {[%clk
0:02:22.3]} 20. Nxg7 {[%clk 0:01:14.1]} 20... Kxg7 {[%clk 0:02:19.6]} 21. Bxf6+
{[%clk 0:01:15.2]} 21... Bxf6 {[%clk 0:02:21.5]} 22. Qxd5 {[%clk 0:01:16.8]}
22... Rxc2 {[%clk 0:02:21.5]} 23. Bh3 {[%clk 0:01:11.2]} 23... Rc5 {[%clk
0:02:17.7]} 24. Qd1 {[%clk 0:01:10.3]} 24... d5 {[%clk 0:02:16.6]} 25. b4 {[%clk
0:01:10.7]} 25... Rc6 {[%clk 0:01:51.4]} 26. Qh5 {[%clk 0:01:04]} 26... Qf7
{[%clk 0:01:52]} 27. Qxf7+ {[%clk 0:00:48.7]} 27... Kxf7 {[%clk 0:01:53.9]} 28.
Rac1 {[%clk 0:00:48.3]} 28... Rxc1 {[%clk 0:01:47.9]} 29. Rxc1 {[%clk
0:00:49.3]} 29... Kg6 {[%clk 0:01:16.2]} 30. Rc6 {[%clk 0:00:50.2]} 30... h5
{[%clk 0:01:14.2]} 31. Rxb6 {[%clk 0:00:45.1]} 31... d4 {[%clk 0:01:08.4]} 32.
Rd6 {[%clk 0:00:46.3]} 32... d3 {[%clk 0:01:07]} 33. Rd5 {[%clk 0:00:46.7]}
33... e3 {[%clk 0:00:07.4]} 34. Bxf5+ {[%clk 0:00:47.5]} 34... Kf7 {[%clk
0:00:04]} 35. Rd7+ {[%clk 0:00:28]} 35... Kf8 {[%clk 0:00:03.9]} 36. Bxd3 {[%clk
0:00:14.2]} 36... e2 {[%clk 0:00:05.3]} 37. Bxe2 {[%clk 0:00:13.5]} 37... Rxe2
{[%clk 0:00:07.2]} 38. Rd6 {[%clk 0:00:12.9]} 38... Ke7 {[%clk 0:00:08.4]} 39.
Rxa6 {[%clk 0:00:13.2]} 39... h4 {[%clk 0:00:09.9]} 40. gxh4 {[%clk 0:00:12.8]}
40... Bxh4 {[%clk 0:00:09.7]} 41. b5 {[%clk 0:00:07.8]} 41... Bf6 {[%clk
0:00:08]} 42. Rc6 {[%clk 0:00:07.6]} 42... Re4 {[%clk 0:00:07.5]} 43. a5 {[%clk
0:00:08.8]} 43... Rxf4 {[%clk 0:00:07.8]} 44. a6 {[%clk 0:00:05.9]} 44... Rb4
{[%clk 0:00:07.9]} 45. Kf1 {[%clk 0:00:04.3]} 45... Bd4 {[%clk 0:00:08.6]} 46.
Rc7+ {[%clk 0:00:03.6]} 46... Kd6 {[%clk 0:00:09]} 47. a7 {[%clk 0:00:05.5]}
47... Ra4 {[%clk 0:00:04.7]} 48. Rc4 {[%clk 0:00:06.7]} 48... Ra1+ {[%clk
0:00:05.1]} 49. Kg2 {[%clk 0:00:07.8]} 49... Bxa7 {[%clk 0:00:06.8]} 50. Rc6+
{[%clk 0:00:07]} 50... Kd5 {[%clk 0:00:07.3]} 51. Ra6 {[%clk 0:00:08.9]} 51...
Rg1+ {[%clk 0:00:06.4]} 52. Kf3 {[%clk 0:00:09]} 52... Bc5 {[%clk 0:00:07.6]}
53. Rh6 {[%clk 0:00:07.2]} 53... Rb1 {[%clk 0:00:07.3]} 54. Rh5+ {[%clk
0:00:06.6]} 54... Kd6 {[%clk 0:00:08.6]} 55. Rh6+ {[%clk 0:00:06.2]} 55... Ke7
{[%clk 0:00:09.6]} 56. Rh5 {[%clk 0:00:05.3]} 56... Rxb5 {[%clk 0:00:08.6]} 57.
h3 {[%clk 0:00:05.1]} 57... Rb3+ {[%clk 0:00:09.5]} 58. Kg4 {[%clk 0:00:05.9]}
58... Bd6 {[%clk 0:00:10.8]} 59. Kf5 {[%clk 0:00:04.5]} 59... Kf7 {[%clk
0:00:08.8]} 60. Rh7+ {[%clk 0:00:05.4]} 60... Kg8 {[%clk 0:00:10.1]} 61. Rd7
{[%clk 0:00:07.3]} 61... Bf8 {[%clk 0:00:11.1]} 62. h4 {[%clk 0:00:06.7]} 62...
Bg7 {[%clk 0:00:11.3]} 63. h5 {[%clk 0:00:05.9]} 63... Kh7 {[%clk 0:00:12.6]}
64. Kg5 {[%clk 0:00:06]} 64... Rb5+ {[%clk 0:00:13.5]} 65. Kg4 {[%clk
0:00:07.1]} 65... Rc5 {[%clk 0:00:12.6]} 66. Rb7 {[%clk 0:00:07.5]} 66... Kg8
{[%clk 0:00:13.4]} 67. Rd7 {[%clk 0:00:08.3]} 67... Bf6 {[%clk 0:00:14.6]} 68.
Rb7 {[%clk 0:00:08.4]} 68... Rg5+ {[%clk 0:00:15.5]} 69. Kf4 {[%clk 0:00:08.1]}
69... Rxh5 {[%clk 0:00:16.9]} 70. Ke4 {[%clk 0:00:06.4]} 70... Kf8 {[%clk
0:00:17.5]} 71. Rd7 {[%clk 0:00:04.9]} 71... Be7 {[%clk 0:00:18.3]} 72. Rb7
{[%clk 0:00:05.6]} 72... Kf7 {[%clk 0:00:19.6]} 73. Rb6 {[%clk 0:00:05]} 73...
Bf6 {[%clk 0:00:18.7]} 74. Rc6 {[%clk 0:00:05.3]} 74... Re5+ {[%clk 0:00:19.1]}
75. Kd3 {[%clk 0:00:06.2]} 75... Kg6 {[%clk 0:00:19.8]} 76. Rd6 {[%clk
0:00:06.9]} 76... Kf5 {[%clk 0:00:20.7]} 77. Kc4 {[%clk 0:00:08.3]} 77... Re3
{[%clk 0:00:20.9]} 78. Rd7 {[%clk 0:00:06.8]} 78... Ke4 {[%clk 0:00:20.5]} 79.
Rd6 {[%clk 0:00:06]} 79... Be5 {[%clk 0:00:21.6]} 80. Rc6 {[%clk 0:00:07.5]}
80... Re1 {[%clk 0:00:20.8]} 81. Rc5 {[%clk 0:00:08.8]} 81... Rb1 {[%clk
0:00:21.7]} 82. Rc6 {[%clk 0:00:09.3]} 82... Rd1 {[%clk 0:00:20.7]} 83. Rc5
{[%clk 0:00:09.8]} 83... Bd4 {[%clk 0:00:22.1]} 84. Rc6 {[%clk 0:00:08.8]} 84...
Rc1+ {[%clk 0:00:23.5]} 85. Kb5 {[%clk 0:00:09.8]} 85... Rb1+ {[%clk 0:00:24.5]}
86. Kc4 {[%clk 0:00:11.3]} 86... Be5 {[%clk 0:00:21.7]} 87. Rc5 {[%clk
0:00:12.4]} 87... Rb6 {[%clk 0:00:14.3]} 88. Rb5 {[%clk 0:00:13.1]} 88... Ra6
{[%clk 0:00:14.6]} 89. Rc5 {[%clk 0:00:14]} 89... Ra4+ {[%clk 0:00:14.4]} 90.
Kb5 {[%clk 0:00:14.7]} 90... Ra3 {[%clk 0:00:15.4]} 91. Kc4 {[%clk 0:00:15.9]}
91... Rc3+ {[%clk 0:00:16.5]} 92. Kb5 {[%clk 0:00:17.1]} 92... Rh3 {[%clk
0:00:15.2]} 93. Kc4 {[%clk 0:00:18.4]} 93... Bd4 {[%clk 0:00:15.7]} 94. Rc6
{[%clk 0:00:18]} 94... Rh8 {[%clk 0:00:12.7]} 95. Re6+ {[%clk 0:00:18.9]} 95...
Be5 {[%clk 0:00:14]} 96. Rc6 {[%clk 0:00:20.6]} 96... Rh7 {[%clk 0:00:11.4]} 97.
Rc5 {[%clk 0:00:21.4]} 97... Rh6 {[%clk 0:00:12.7]} 98. Rb5 {[%clk 0:00:20.2]}
98... Bd4 {[%clk 0:00:12.7]} 99. Rb3 {[%clk 0:00:19.5]} 99... Rc6+ {[%clk
0:00:13.1]} 100. Kb5 {[%clk 0:00:20.6]} 100... Rc5+ {[%clk 0:00:13.7]} 101. Kb4
{[%clk 0:00:21.6]} 101... Kd5 {[%clk 0:00:14.8]} 102. Rb1 {[%clk 0:00:20.1]}
102... Rc8 {[%clk 0:00:13.5]} 103. Kb3 {[%clk 0:00:20.2]} 103... Rc3+ {[%clk
0:00:12.3]} 104. Kb4 {[%clk 0:00:20.7]} 104... Rd3 {[%clk 0:00:11.2]} 105. Kb5
{[%clk 0:00:20.3]} 105... Bc5 {[%clk 0:00:10.1]} 106. Rb2 {[%clk 0:00:21.5]}
106... Rd1 {[%clk 0:00:09.9]} 107. Rb3 {[%clk 0:00:22.2]} 107... Rd4 {[%clk
0:00:05.3]} 108. Rb2 {[%clk 0:00:21.8]} 108... Rd3 {[%clk 0:00:06.5]} 109. Rb1
{[%clk 0:00:22.7]} 109... Bd4 {[%clk 0:00:07.9]} 110. Rb4 {[%clk 0:00:22.2]}
110... Rg3 {[%clk 0:00:08.4]} 111. Rb1 {[%clk 0:00:22.6]} 111... Rg8 {[%clk
0:00:09.4]} 112. Rb3 {[%clk 0:00:22.1]} 112... Rc8 {[%clk 0:00:10.3]} 113. Kb4
{[%clk 0:00:21.9]} 113... Rb8+ {[%clk 0:00:06.5]} 114. Ka4 {[%clk 0:00:23]}
114... Ra8+ {[%clk 0:00:07.4]} 115. Kb5 {[%clk 0:00:24.2]} 115... Ra2 {[%clk
0:00:06.7]} 116. Rb4 {[%clk 0:00:24.7]} 116... Ra1 {[%clk 0:00:05.8]} 117. Rb3
{[%clk 0:00:25.5]} 117... Ra7 {[%clk 0:00:06.7]} 118. Rb4 {[%clk 0:00:26.2]}
118... Bc5 {[%clk 0:00:07.8]} 119. Rb3 {[%clk 0:00:25.1]} 119... Rb7+ {[%clk
0:00:09.1]} 120. Ka4 {[%clk 0:00:26.1]} 120... Ra7+ {[%clk 0:00:10.5]} 1/2-1/2

[Event "*** Titled Tuesday Blitz"]
[Site "Chess.com"]
[Date "2018.01.02"]
[Round "5"]
[White "hermionegrangermagic"]
[Black "ChristopherYoo"]
[Result "0-1"]
[WhiteElo "2421"]
[BlackElo "2305"]
[TimeControl "180+2"]
[EndTime "14:01:01 PST"]
[Termination "ChristopherYoo won by resignation"]

1. Nf3 {[%clk 0:03:00.7]} 1... Nf6 {[%clk 0:03:00.4]} 2. d4 {[%clk 0:03:01.5]}
2... g6 {[%clk 0:03:01.1]} 3. c4 {[%clk 0:03:02.7]} 3... Bg7 {[%clk 0:03:01.8]}
4. g3 {[%clk 0:03:04.6]} 4... O-O {[%clk 0:03:02.5]} 5. Bg2 {[%clk 0:03:06.5]}
5... d5 {[%clk 0:03:03.7]} 6. O-O {[%clk 0:03:08.4]} 6... dxc4 {[%clk
0:03:00.7]} 7. Qc2 {[%clk 0:03:09.1]} 7... a6 {[%clk 0:02:55.4]} 8. Qxc4 {[%clk
0:03:07.2]} 8... b5 {[%clk 0:02:55.6]} 9. Qc2 {[%clk 0:03:07.8]} 9... Bb7 {[%clk
0:02:56]} 10. b3 {[%clk 0:03:04.9]} 10... Nbd7 {[%clk 0:02:53]} 11. Bb2 {[%clk
0:03:05.4]} 11... Rc8 {[%clk 0:02:53.1]} 12. Ne5 {[%clk 0:02:58.8]} 12... Bxg2
{[%clk 0:02:51.7]} 13. Kxg2 {[%clk 0:02:58.4]} 13... c5 {[%clk 0:02:51]} 14.
dxc5 {[%clk 0:02:59.2]} 14... Rxc5 {[%clk 0:02:47.1]} 15. Qd2 {[%clk 0:02:48.8]}
15... Nxe5 {[%clk 0:02:45.9]} 16. Qe3 {[%clk 0:02:48.6]} 16... Qd5+ {[%clk
0:02:41.3]} 17. Kg1 {[%clk 0:02:47.7]} 17... Nfg4 {[%clk 0:02:33.2]} 0-1